bitfinex/quotes_SOLUSD_20230116
["timestamp","ask_amount","ask_price","bid_price","bid_amount"]
[1673882701072,4.14725,22.886,22.841,20.0]
[1673882701264,4.14725,22.886,22.853,21.46196354]
[1673882701498,4.14725,22.886,22.841,20.0]
[1673882701710,20.66939179,22.887,22.851,20.0]
[1673882702250,21.7,22.9,22.852,21.46196354]
[1673882702446,4.14725,22.899,22.852,38.46196354]
[1673882702666,21.52,22.89,22.853,20.0]
[1673882702865,25.66725,22.89,22.854,17.0]
[1673882703075,25.66725,22.89,22.854,21.46196354]
[1673882703281,4.14725,22.889,22.855,21.46196354]
[1673882703703,20.0,22.888,22.851,20.0]
[1673882703917,21.7,22.88,22.838,43.09]
[1673882704130,21.69,22.87,22.832,43.09]
[1673882704344,21.69,22.87,22.832,64.55196354]
[1673882704561,4.14725,22.87,22.837,41.46196354]
[1673882704883,39.28763366,22.872,22.85,21.53]
[1673882705276,4.0,22.875,22.85,21.57]
[1673882705490,4.0,22.875,22.851,21.46196354]
[1673882705714,52.77,22.903,22.86,21.7]
[1673882705918,21.58,22.91,22.86,21.7]
[1673882706134,20.0,22.917,22.861,33.49574461]
[1673882706330,24.14725,22.913,22.862,21.09083]
[1673882706540,4.14725,22.912,22.862,42.55279354]
[1673882706772,20.0,22.917,22.864,7.9241328]
[1673882706974,114.9314,22.919,22.865,21.0903]
[1673882707191,20.0,22.92,22.866,11.75240308]
[1673882707383,32.73,22.933,22.868,6.31939159]
[1673882707595,4.14725,22.925,22.87,5.53715303]
[1673882707807,32.73,22.931,22.871,4.08922]
[1673882708020,20.0,22.929,22.872,7.90797266]
[1673882708344,54.18196354,22.939,22.874,4.41776308]
[1673882708659,152.3321,22.956,22.876,4.15096335]
[1673882708856,152.3321,22.956,22.878,49.86397974]
[1673882708857,20.0,22.955,22.878,49.86397974]
[1673882709060,4.14725,22.954,22.92,21.59]
[1673882709270,4.14725,22.954,22.9,86.8]
[1673882709271,4.14725,22.954,22.91,21.53]
[1673882709488,4.14725,22.954,22.92,21.7]
[1673882709913,4.14725,22.954,22.93,21.7]
[1673882710232,32.67,22.975,22.94,21.7]
[1673882710448,4.14725,22.974,22.941,20.0]
[1673882710654,4.14725,22.974,22.921,37.0]
[1673882710856,32.67,22.973,22.921,37.0]
[1673882711182,4.14725,22.972,22.921,37.0]
[1673882711398,6.0408803,22.959,22.91,21.59]
[1673882711619,21.7,22.96,22.917,21.46196354]
[1673882711800,32.69,22.958,22.92,21.59]
[1673882712122,4.14725,22.957,22.93,21.59]
[1673882712336,20.0,22.965,22.93,21.59]
[1673882712535,20.0,22.968,22.932,20.0]
[1673882712758,32.68,22.968,22.932,20.0]
[1673882712961,20.0,22.967,22.931,21.46196354]
[1673882713173,52.68,22.967,22.92,21.59]
[1673882713497,52.68,22.967,22.922,20.0]
[1673882713498,20.0,22.966,22.922,20.0]
[1673882713714,198.06221548,22.973,22.922,20.0]
[1673882713715,199.49440191,22.976,22.923,4.07995]
[1673882713897,4.14725,22.975,22.93,21.59]
[1673882714432,4.14725,22.975,22.94,21.53]
[1673882714638,4.14725,22.975,22.941,20.0]
[1673882714862,21.59,22.97,22.922,20.0]
[1673882715188,4.14725,22.969,22.922,20.0]
[1673882715394,36.82725,22.969,22.923,21.46196354]
[1673882715598,36.82725,22.969,22.922,20.0]
[1673882715599,21.57,22.96,22.922,20.0]
[1673882715795,20.0,22.959,22.923,21.46196354]
[1673882716005,69.69,22.959,22.923,21.46196354]
[1673882716537,20.0,22.958,22.91,39.043702]
[1673882716746,41.14725,22.957,22.914,21.46196354]
[1673882716961,6.15580778,22.966,22.914,21.46196354]
[1673882716962,4.14725,22.956,22.92,21.7]
[1673882717603,32.7,22.955,22.921,20.0]
[1673882717787,32.7,22.955,22.921,41.46196354]
[1673882718208,32.69,22.959,22.921,20.0]
[1673882718537,32.69,22.963,22.923,20.0]
[1673882718961,32.68,22.966,22.924,21.46196354]
[1673882719160,20.0,22.967,22.924,21.46196354]
[1673882719498,20.0,22.967,22.925,20.0]
[1673882719499,32.68,22.965,22.925,20.0]
[1673882719681,20.0,22.967,22.925,20.0]
[1673882719890,32.69,22.964,22.926,21.46196354]
[1673882720204,32.68,22.966,22.926,21.46196354]
[1673882720520,20.0,22.962,22.926,21.46196354]
[1673882720850,32.68,22.965,22.926,21.46196354]
[1673882721051,32.69,22.961,22.926,21.46196354]
[1673882721260,32.69,22.964,22.926,21.46196354]
[1673882721474,32.69,22.96,22.927,20.0]
[1673882721687,32.69,22.963,22.928,4.07906]
[1673882721894,32.69,22.959,22.928,4.07906]
[1673882722106,196.51354141,22.965,22.928,4.07906]
[1673882722107,32.69,22.963,22.93,21.59]
[1673882722307,196.51354141,22.965,22.93,21.59]
[1673882722516,86.44,23.0,22.928,4.07906]
[1673882722517,194.92279613,22.979,22.95,21.59]
[1673882723142,194.92279613,22.979,22.951,21.46196354]
[1673882723357,194.92279613,22.979,22.94,21.59]
[1673882723589,4.14725,22.978,22.951,21.46196354]
[1673882723801,191.94577092,22.977,22.952,17.0]
[1673882724107,4.14725,22.976,22.953,21.46196354]
[1673882724319,193.33660562,22.975,22.954,17.0]
[1673882724535,4.14725,22.974,22.955,20.0]
[1673882724721,5e-05,22.974,22.955,41.46196354]
[1673882724934,191.94577092,22.977,22.955,20.0]
[1673882725158,193.33660562,22.975,22.957,20.0]
[1673882725378,193.33660562,22.975,22.958,17.0]
[1673882725576,197.48385562,22.975,22.958,38.46196354]
[1673882725794,4.14725,22.974,22.96,21.7]
[1673882726115,4.14725,22.974,22.955,20.0]
[1673882726116,202.51005816,22.974,22.95,21.57]
[1673882726426,218.06221548,22.973,22.94,21.59]
[1673882726643,218.06221548,22.973,22.927,20.0]
[1673882726644,250.73221548,22.973,22.93,21.59]
[1673882726951,250.73221548,22.973,22.931,41.46196354]
[1673882727162,250.73221548,22.973,22.931,20.0]
[1673882727163,192.38593205,22.971,22.931,20.0]
[1673882727359,20.0,22.969,22.931,20.0]
[1673882727574,21.14725,22.968,22.927,20.0]
[1673882727770,219.4789366,22.967,22.927,20.0]
[1673882728314,219.4789366,22.967,22.923,20.0]
[1673882728315,196.51354141,22.965,22.928,4.07906]
[1673882728511,199.21846633,22.963,22.92,20.0]
[1673882728951,195.18414471,22.961,22.911,20.0]
[1673882729139,49.69,22.962,22.911,20.0]
[1673882729140,6.172171,22.958,22.912,4.08191]
[1673882729356,20.0,22.949,22.912,4.08191]
[1673882729767,6.73858466,22.947,22.913,21.46196354]
[1673882729998,27.79740099,22.94,22.914,4.08155]
[1673882730318,20.0,22.938,22.914,4.08155]
[1673882730716,21.7,22.93,22.914,4.08155]
[1673882730941,17.0,22.929,22.914,4.08155]
[1673882731144,21.7,22.92,22.91,17.453702]
[1673882731351,37.0,22.919,22.871,20.0]
[1673882731568,69.75,22.919,22.873,4.08887]
[1673882731976,32.75,22.919,22.88,21.56]
[1673882732181,32.74,22.927,22.89,21.59]
[1673882732425,20.0,22.928,22.892,20.0]
[1673882732605,20.0,22.928,22.893,4.08529]
[1673882732606,32.74,22.926,22.893,4.08529]
[1673882732818,20.0,22.925,22.893,4.08529]
[1673882733027,52.74,22.925,22.894,21.46196354]
[1673882733237,52.74,22.925,22.895,4.08494]
[1673882733238,20.0,22.925,22.895,4.08494]
[1673882733458,32.74,22.924,22.896,20.0]
[1673882733662,32.74,22.924,22.897,4.08458]
[1673882733873,32.74,22.927,22.897,4.08458]
[1673882734086,32.74,22.923,22.897,4.08458]
[1673882734295,21.7,22.92,22.897,4.08458]
[1673882734506,26.98857832,22.919,22.897,4.08458]
[1673882734718,37.0,22.918,22.897,4.08458]
[1673882735132,32.75,22.917,22.897,4.08458]
[1673882735342,20.0,22.915,22.897,4.08458]
[1673882735555,17.0,22.914,22.897,4.08458]
[1673882735760,21.58,22.91,22.897,4.08458]
[1673882735982,32.76,22.914,22.897,4.08458]
[1673882736308,20.0,22.915,22.897,4.08458]
[1673882736309,20.0,22.908,22.897,4.08458]
[1673882736493,37.0,22.907,22.897,0.00458]
[1673882736830,37.0,22.907,22.875,4.08851]
[1673882736831,4.60506192,22.904,22.875,4.08851]
[1673882737042,21.52,22.89,22.875,4.08851]
[1673882737235,20.0,22.888,22.875,4.08851]
[1673882737660,32.8,22.887,22.875,4.08851]
[1673882737879,32.79,22.888,22.875,4.08851]
[1673882738193,48.76218297,22.895,22.875,4.08851]
[1673882738394,20.0,22.894,22.875,4.08851]
[1673882738595,52.79,22.894,22.875,4.08851]
[1673882738928,21.7,22.89,22.875,4.08851]
[1673882739352,7.46885804,22.888,22.875,0.00851]
[1673882739570,6.54708833,22.886,22.844,4.09406]
[1673882739753,20.0,22.885,22.844,4.09406]
[1673882739958,21.58,22.88,22.844,25.55602354]
[1673882740269,20.0,22.884,22.845,20.0]
[1673882740488,52.8,22.883,22.846,4.0937]
[1673882740928,4.14725,22.882,22.844,17.517007]
[1673882741242,20.0,22.881,22.847,21.46196354]
[1673882741449,20.0,22.881,22.85,21.57]
[1673882741450,4.14725,22.88,22.85,21.57]
[1673882741871,4.14725,22.88,22.85,43.03196354]
[1673882742089,4.14725,22.88,22.845,20.0]
[1673882742399,4.14725,22.88,22.847,20.0]
[1673882742619,4.14725,22.88,22.844,17.517007]
[1673882742620,32.19337024,22.88,22.844,17.517007]
[1673882742799,52.81,22.879,22.844,17.517007]
[1673882743012,4.14725,22.878,22.845,21.46196354]
[1673882743218,4.14725,22.878,22.846,20.0]
[1673882743430,4.14725,22.878,22.85,21.7]
[1673882744080,4.14725,22.878,22.851,21.46196354]
[1673882744287,4.14725,22.878,22.851,20.0]
[1673882744497,4.14725,22.878,22.846,19.5]
[1673882744704,4.14725,22.878,22.852,21.46196354]
[1673882745230,4.14725,22.878,22.853,20.0]
[1673882745644,4.14725,22.878,22.86,21.7]
[1673882745855,4.14725,22.878,22.861,17.0]
[1673882746068,4.14725,22.877,22.871,20.0]
[1673882746423,20.0,22.913,22.872,17.0]
[1673882746585,4.14725,22.911,22.88,21.59]
[1673882746790,4.14725,22.911,22.881,17.0]
[1673882747001,4.14725,22.911,22.881,38.46196354]
[1673882747326,4.14725,22.911,22.89,21.59]
[1673882747538,5e-05,22.91,22.891,17.0]
[1673882747856,195.9215491,22.943,22.911,4.14725]
[1673882748180,195.9215491,22.943,22.92,21.56]
[1673882748386,191.29120002,22.948,22.93,21.59]
[1673882748916,191.29120002,22.948,22.931,17.0]
[1673882749222,20.0,22.966,22.931,23.57986083]
[1673882749434,20.0,22.966,22.96,21.59]
[1673882749622,1.80833638,22.97,22.96,21.59]
[1673882749837,91.5330666,22.98,22.961,17.0]
[1673882750046,91.5330666,22.98,22.94,21.74]
[1673882750256,91.5330666,22.98,22.94,4.07692]
[1673882750257,54.12196354,22.979,22.94,4.07692]
[1673882750483,54.12196354,22.979,22.932,41.46196354]
[1673882750699,21.46196354,22.978,22.94,21.46196354]
[1673882750899,21.46196354,22.978,22.941,4.07675]
[1673882751101,32.67,22.977,22.94,21.74]
[1673882751312,32.67,22.977,22.962,20.0]
[1673882751524,25.60921354,22.976,22.962,17.821]
[1673882751732,32.67,22.977,22.962,17.821]
[1673882751951,54.13196354,22.975,22.962,17.821]
[1673882752261,17.0,22.974,22.962,17.821]
[1673882752480,32.67,22.974,22.962,17.821]
[1673882752687,20.0,22.976,22.941,26.4843268]
[1673882753014,20.0,22.976,22.95,21.7]
[1673882753199,20.0,22.976,22.951,17.0]
[1673882753408,20.0,22.973,22.95,21.7]
[1673882753641,20.0,22.973,22.941,20.0]
[1673882753851,27.74978856,22.97,22.941,20.0]
[1673882754164,25.60921354,22.969,22.951,20.0]
[1673882754378,17.0,22.968,22.951,20.0]
[1673882754587,20.0,22.967,22.951,20.0]
[1673882754793,192.09937528,22.966,22.951,20.0]
[1673882755114,209.09937528,22.966,22.951,20.0]
[1673882755426,194.30218152,22.964,22.951,20.0]
[1673882755640,219.16141464,22.963,22.92,21.56]
[1673882755829,21.69,22.96,22.92,21.59]
[1673882756032,199.29593991,22.961,22.923,21.46196354]
[1673882756253,32.69,22.959,22.923,21.46196354]
[1673882756449,228.25900703,22.96,22.926,41.46196354]
[1673882756665,32.69,22.958,22.926,41.46196354]
[1673882756871,194.30218152,22.964,22.94,21.59]
[1673882757087,20.0,22.965,22.94,21.59]
[1673882757315,20.0,22.961,22.94,21.59]
[1673882757625,20.0,22.961,22.93,21.57]
[1673882757841,198.01416464,22.963,22.931,17.0]
[1673882758052,198.01416464,22.963,22.941,20.0]
[1673882758244,20.0,22.969,22.941,20.0]
[1673882758458,198.38010106,22.967,22.942,38.46196354]
[1673882758781,198.38010106,22.967,22.95,21.53]
[1673882758999,191.89070422,22.972,22.951,17.0]
[1673882759186,191.89070422,22.972,22.951,38.46196354]
[1673882759398,197.68927559,22.979,22.952,21.46196354]
[1673882759730,197.68927559,22.979,22.952,20.0]
[1673882759942,190.65303262,22.977,22.954,20.0]
[1673882760132,197.72414041,22.975,22.954,20.0]
[1673882760340,195.39484453,22.973,22.954,20.0]
[1673882760564,198.34280539,22.971,22.93,21.59]
[1673882760782,195.79371393,22.969,22.93,21.59]
[1673882760975,198.38010106,22.967,22.93,21.59]
[1673882761184,40.0,22.966,22.933,21.46196354]
[1673882761391,20.0,22.966,22.94,21.57]
[1673882761719,224.56070422,22.972,22.941,21.46196354]
[1673882761933,192.20138578,22.974,22.941,21.46196354]
[1673882762143,215.39484453,22.973,22.942,20.0]
[1673882762343,20.0,22.973,22.943,17.0]
[1673882762553,32.67,22.975,22.943,17.0]
[1673882762759,190.65303262,22.977,22.95,21.57]
[1673882763087,197.68927559,22.979,22.96,21.62]
[1673882763295,197.68927559,22.979,22.952,20.0]
[1673882763617,32.67,22.978,22.945,21.46196354]
[1673882763806,197.68927559,22.979,22.95,21.59]
[1673882764019,197.68927559,22.979,22.96,21.57]
[1673882764446,197.68927559,22.979,22.942,20.0]
[1673882764668,32.67,22.978,22.94,21.57]
[1673882764882,231.10088637,22.978,22.94,21.57]
[1673882765090,197.13754409,22.976,22.941,21.46196354]
[1673882765303,217.72414041,22.975,22.94,21.57]
[1673882765622,217.72414041,22.975,22.92,86.69]
[1673882765623,250.39414041,22.975,22.93,21.59]
[1673882765811,195.39484453,22.973,22.933,21.46196354]
[1673882766016,196.43569542,22.97,22.94,21.56]
[1673882766236,197.68927559,22.979,22.95,21.53]
[1673882766451,197.68927559,22.979,22.96,21.59]
[1673882766976,197.68927559,22.979,22.961,21.46196354]
[1673882767192,197.68927559,22.979,22.96,21.59]
[1673882767508,197.68927559,22.979,22.961,17.0]
[1673882767722,197.68927559,22.979,22.97,21.57]
[1673882768237,91.5330666,22.98,22.961,17.0]
[1673882768447,197.68927559,22.979,22.96,21.59]
[1673882768659,197.68927559,22.979,22.952,20.0]
[1673882768871,230.34927559,22.979,22.952,20.0]
[1673882769087,197.68927559,22.979,22.956,21.46196354]
[1673882769280,230.34927559,22.979,22.956,21.46196354]
[1673882769492,197.68927559,22.979,22.956,21.46196354]
[1673882769708,197.68927559,22.979,22.952,20.0]
[1673882770031,197.68927559,22.979,22.96,21.7]
[1673882770428,197.68927559,22.979,22.961,38.46196354]
[1673882770858,190.65303262,22.977,22.96,21.7]
[1673882771189,190.65303262,22.977,22.953,4.07461]
[1673882771378,229.80754409,22.976,22.952,21.46196354]
[1673882771605,229.80754409,22.976,22.94,21.56]
[1673882771934,195.39484453,22.973,22.942,21.46196354]
[1673882772132,215.39484453,22.973,22.93,21.7]
[1673882772348,113.1030666,22.98,22.977,50.41310926]
[1673882772349,91.5330666,22.98,22.977,50.41310926]
[1673882772551,195.52591691,23.008,22.978,4.07018]
[1673882772761,193.41852275,23.018,22.978,45.53214354]
[1673882772974,219.2148153,23.006,22.979,20.0]
[1673882773186,219.2148153,23.006,22.977,50.41310926]
[1673882773387,197.08613274,23.004,22.98,43.02196354]
[1673882773597,32.61,23.016,22.981,21.06965]
[1673882773809,20.0,23.015,22.983,20.0]
[1673882774038,20.0,23.015,22.984,21.06912]
[1673882774252,32.61,23.014,22.984,73.02375237]
[1673882774472,32.61,23.014,22.99,21.59]
[1673882774651,32.61,23.014,22.985,42.53090354]
[1673882774975,196.66127722,23.02,22.987,20.0]
[1673882775186,32.62,23.013,22.988,21.06841]
[1673882775504,228.12422189,23.019,22.989,4.06823]
[1673882775720,32.62,23.012,22.98,21.56]
[1673882775914,20.0,23.016,22.985,45.56156216]
[1673882776125,20.0,23.021,22.984,20.0]
[1673882776126,32.62,23.011,22.984,20.0]
[1673882776341,32.61,23.015,22.99,21.59]
[1673882776554,32.61,23.02,22.991,4.06788]
[1673882776763,32.61,23.02,22.984,20.0]
[1673882776982,32.61,23.014,22.97,21.53]
[1673882777177,21.59,23.01,22.978,4.07018]
[1673882777497,21.7,23.0,22.964,73.46032186]
[1673882777713,134.59562939,23.012,22.941,5.78341504]
[1673882777714,20.0,22.999,22.96,21.59]
[1673882777920,49.64,22.999,22.95,21.62]
[1673882778114,17.0,22.999,22.95,21.62]
[1673882778452,21.59,22.99,22.95,21.62]
[1673882778660,17.0,22.989,22.95,21.62]
[1673882778853,69.65,22.989,22.95,21.62]
[1673882779066,69.65,22.989,22.944,20.0]
[1673882779067,20.0,22.988,22.96,21.7]
[1673882779296,32.65,22.988,22.96,21.7]
[1673882779505,32.64,22.996,22.96,21.7]
[1673882779694,32.65,22.987,22.96,21.7]
[1673882779908,32.64,22.995,22.96,21.7]
[1673882780117,32.62,23.007,22.96,21.7]
[1673882780328,32.64,22.994,22.97,21.46196354]
[1673882780541,32.63,23.006,22.96,21.7]
[1673882780747,32.64,22.993,22.97,21.62]
[1673882781074,20.0,23.005,22.97,21.62]
[1673882781075,20.0,23.004,22.978,20.0]
[1673882781480,32.63,23.003,22.978,20.0]
[1673882781814,20.0,23.001,22.961,20.0]
[1673882782007,20.0,23.001,22.97,43.05196354]
[1673882782215,20.0,23.001,22.97,21.59]
[1673882782426,32.63,23.0,22.971,21.46196354]
[1673882782635,32.62,23.007,22.97,21.59]
[1673882782861,32.62,23.007,22.962,7.72746547]
[1673882782862,32.62,23.007,22.98,21.59]
[1673882783066,32.61,23.018,22.981,20.0]
[1673882783790,20.0,23.017,22.981,20.0]
[1673882784012,32.62,23.009,22.978,24.07018]
[1673882784230,32.61,23.016,22.978,20.0]
[1673882784448,32.62,23.008,22.978,20.0]
[1673882784655,20.0,23.007,22.977,50.41310926]
[1673882784869,20.0,23.006,22.978,20.0]
[1673882785277,32.63,23.005,22.977,50.41310926]
[1673882785706,20.0,23.004,22.977,50.41310926]
[1673882786230,52.63,23.003,22.977,50.41310926]
[1673882786429,21.69,23.0,22.977,50.41310926]
[1673882786854,89.64,22.999,22.977,50.41310926]
[1673882787272,20.0,22.998,22.977,50.41310926]
[1673882787482,17.0,22.997,22.977,50.41310926]
[1673882787697,20.0,22.995,22.977,50.41310926]
[1673882787918,146.1,22.994,22.977,50.41310926]
[1673882788111,21.7,22.99,22.977,50.41310926]
[1673882788331,37.0,22.989,22.977,50.41310926]
[1673882788527,20.0,22.988,22.977,50.41310926]
[1673882788736,149.1,22.986,22.951,20.0]
[1673882788966,149.1,22.986,22.941,20.0]
[1673882788967,21.7,22.98,22.941,20.0]
[1673882789386,69.66,22.979,22.941,20.0]
[1673882789701,198.76,22.979,22.93,21.59]
[1673882789888,20.0,22.978,22.935,21.46196354]
[1673882790100,20.0,22.977,22.94,21.53]
[1673882790319,32.67,22.977,22.941,4.07675]
[1673882790528,20.0,22.979,22.941,25.53871354]
[1673882790733,20.0,22.975,22.942,20.0]
[1673882791163,32.67,22.974,22.942,20.0]
[1673882791362,32.67,22.974,22.943,21.46196354]
[1673882791573,32.66,22.979,22.944,4.07621]
[1673882791785,20.0,22.978,22.945,20.0]
[1673882792214,20.0,22.981,22.95,21.7]
[1673882792437,20.0,22.983,22.951,17.0]
[1673882792624,20.0,22.982,22.952,20.0]
[1673882792835,20.0,22.989,22.952,20.0]
[1673882792836,32.64,22.998,22.96,21.59]
[1673882793267,32.63,23.003,22.961,38.46196354]
[1673882793569,20.0,23.002,22.963,20.0]
[1673882793797,150.69,23.0,22.964,4.07266]
[1673882794119,32.64,22.993,22.964,4.07266]
[1673882794326,52.64,22.993,22.952,20.0]
[1673882794854,20.0,22.992,22.952,20.0]
[1673882795161,32.64,22.993,22.953,4.07461]
[1673882795381,52.65,22.991,22.953,4.07461]
[1673882795567,20.0,22.989,22.953,4.07461]
[1673882795772,20.0,22.988,22.952,20.0]
[1673882796004,32.65,22.99,22.96,21.59]
[1673882796328,32.64,22.998,22.96,21.59]
[1673882796533,20.0,23.002,22.97,21.7]
[1673882796747,20.0,23.002,22.961,21.46196354]
[1673882796970,52.63,23.002,22.962,21.07302]
[1673882797272,20.0,23.002,22.963,25.53480354]
[1673882797491,32.63,23.001,22.964,17.0]
[1673882797678,40.0,23.0,22.965,20.0]
[1673882797889,40.0,23.0,22.966,17.0]
[1673882798110,32.64,22.999,22.965,41.46196354]
[1673882798323,32.64,22.999,22.967,21.46196354]
[1673882798639,32.64,22.999,22.969,20.0]
[1673882799153,32.63,23.001,22.968,21.46196354]
[1673882799362,32.64,22.998,22.965,20.0]
[1673882799576,20.0,22.999,22.966,4.07231]
[1673882799897,32.64,22.997,22.966,21.07231]
[1673882800111,20.0,22.996,22.966,17.0]
[1673882800320,52.64,22.998,22.967,21.46196354]
[1673882800642,17.0,22.997,22.968,17.0]
[1673882800847,17.0,22.998,22.966,17.0]
[1673882801170,17.0,22.998,22.96,21.59]
[1673882801171,20.0,22.997,22.96,21.59]
[1673882801354,146.1,22.996,22.961,4.07319]
[1673882801566,20.0,22.994,22.961,4.07319]
[1673882801905,20.0,22.994,22.95,41.59]
[1673882801906,150.8,22.99,22.952,41.46196354]
[1673882802092,166.1,22.989,22.953,4.07461]
[1673882802299,69.65,22.989,22.953,4.07461]
[1673882802509,20.0,22.988,22.953,4.07461]
[1673882802720,17.0,22.987,22.954,21.46196354]
[1673882802929,20.0,22.986,22.954,21.46196354]
[1673882803157,20.0,22.984,22.952,20.0]
[1673882803488,17.0,22.983,22.953,4.07461]
[1673882803669,17.0,22.983,22.953,21.46196354]
[1673882803884,17.0,22.983,22.954,21.46196354]
[1673882804109,17.0,22.983,22.952,20.0]
[1673882804318,32.65,22.989,22.952,24.07479]
[1673882804527,149.1,22.992,22.96,21.7]
[1673882804726,32.65,22.988,22.96,4.07337]
[1673882805046,150.8,22.99,22.95,20.0]
[1673882805261,32.65,22.987,22.95,20.0]
[1673882805451,20.0,22.986,22.94,21.56]
[1673882805665,20.0,22.986,22.932,124.78181137]
[1673882805666,129.1,22.979,22.942,4.07657]
[1673882805871,129.1,22.977,22.932,118.8308]
[1673882806200,20.0,22.974,22.936,4.07763]
[1673882806405,21.69,22.97,22.936,4.07763]
[1673882806615,71.13196354,22.973,22.93,21.53]
[1673882806822,32.68,22.969,22.94,21.59]
[1673882807035,41.98922618,22.973,22.941,4.07675]
[1673882807256,32.66,22.984,22.941,4.07675]
[1673882807467,20.0,22.974,22.941,4.07675]
[1673882807784,129.1,22.972,22.93,21.53]
[1673882808002,129.1,22.972,22.926,20.0]
[1673882808003,150.69,22.97,22.931,4.07852]
[1673882808185,26.75666709,22.969,22.931,4.07852]
[1673882808394,146.1,22.968,22.921,68.69285596]
[1673882808623,129.1,22.966,22.923,4.07995]
[1673882808833,129.1,22.964,22.923,4.07995]
[1673882809051,129.1,22.962,22.921,63.09]
[1673882809453,129.1,22.958,22.911,63.09]
[1673882809662,21.7,22.95,22.912,4.08191]
[1673882809876,17.0,22.949,22.912,4.08191]
[1673882810084,20.0,22.948,22.921,43.09]
[1673882810510,32.71,22.947,22.921,43.09]
[1673882811042,17.0,22.946,22.912,4.08191]
[1673882811255,49.71,22.946,22.912,4.08191]
[1673882811570,17.0,22.946,22.912,4.08191]
[1673882811764,32.71,22.945,22.912,4.08191]
[1673882812394,32.71,22.945,22.921,20.0]
[1673882812605,32.7,22.957,22.921,20.0]
[1673882812834,32.71,22.944,22.921,20.0]
[1673882813026,150.56196354,22.955,22.921,20.0]
[1673882813236,32.72,22.943,22.912,4.08191]
[1673882813442,20.0,22.949,22.912,4.08191]
[1673882813656,32.72,22.942,22.911,20.0]
[1673882813879,32.71,22.948,22.911,20.0]
[1673882814116,20.0,22.965,22.92,21.7]
[1673882814117,32.7,22.953,22.92,21.7]
[1673882814282,32.69,22.958,22.92,21.7]
[1673882814493,32.7,22.952,22.921,20.0]
[1673882814704,32.7,22.957,22.921,20.0]
[1673882814920,20.0,22.956,22.921,20.0]
[1673882815235,52.7,22.956,22.922,17.0]
[1673882815438,32.7,22.957,22.93,21.59]
[1673882815647,32.69,22.962,22.931,17.0]
[1673882815863,32.69,22.964,22.931,17.0]
[1673882816488,32.69,22.964,22.93,21.59]
[1673882816489,20.0,22.963,22.932,20.0]
[1673882816698,20.0,22.963,22.923,20.0]
[1673882817021,20.0,22.959,22.923,20.0]
[1673882817227,20.0,22.958,22.923,20.0]
[1673882817454,20.0,22.956,22.923,20.0]
[1673882817655,17.0,22.955,22.923,20.0]
[1673882817888,69.7,22.955,22.923,20.0]
[1673882818086,17.0,22.955,22.924,17.0]
[1673882818397,17.0,22.955,22.916,20.0]